bitfinex/quotes_BTCUSD_20250809
["timestamp","ask_amount","ask_price","bid_price","bid_amount"]
[1754774376287,0.00314156,116680.0,116670.0,0.68091084]
[1754774376540,0.00314156,116680.0,116670.0,0.31054731]
[1754774376757,0.00314156,116680.0,116670.0,0.68091084]
[1754774378723,0.00314156,116680.0,116670.0,0.80423316]
[1754774380035,0.00314156,116680.0,116670.0,0.80391316]
[1754774380692,0.00314156,116680.0,116670.0,0.31022731]
[1754774380909,0.00314156,116680.0,116670.0,0.80391316]
[1754774381184,0.17776054,116680.0,116670.0,0.80391316]
[1754774381439,0.17726054,116680.0,116670.0,0.80391316]
[1754774381883,0.00585156,116680.0,116670.0,0.80391316]
[1754774382117,0.00264156,116680.0,116670.0,0.80391316]
[1754774382371,0.00264156,116680.0,116670.0,1.16136218]
[1754774382587,4.884e-05,116680.0,116670.0,1.16136218]
[1754774383451,4.884e-05,116680.0,116670.0,0.66767633]
[1754774383660,4.884e-05,116680.0,116670.0,1.16136218]
[1754774384092,0.17460566,116690.0,116680.0,0.51140898]
[1754774384296,0.17673674,116690.0,116680.0,0.51140898]
[1754774385395,0.17673674,116690.0,116680.0,0.51240898]
[1754774385603,0.17773674,116690.0,116680.0,0.51340898]
[1754774393726,0.17773674,116690.0,116680.0,0.65080898]
[1754774398186,0.17773674,116690.0,116680.0,0.4794]
[1754774398656,0.17773674,116690.0,116680.0,0.47916]
[1754774400458,0.17773674,116690.0,116680.0,0.13916]
[1754774400678,0.17773674,116690.0,116680.0,0.13932]
[1754774401138,0.20346974,116690.0,116680.0,0.13932]
[1754774401797,0.20346974,116690.0,116680.0,0.002]
[1754774402017,0.20346974,116690.0,116680.0,0.13968]
[1754774402459,0.29033185,116690.0,116680.0,0.13968]
[1754774402902,0.29896949,116690.0,116680.0,0.13968]
[1754774403770,0.29033185,116690.0,116680.0,0.13968]
[1754774404969,0.36689487,116690.0,116680.0,0.13984]
[1754774405384,0.37527248,116690.0,116680.0,0.002]
[1754774405533,0.37527248,116690.0,116680.0,0.13988]
[1754774405947,0.37527248,116690.0,116680.0,0.13888]
[1754774406352,0.37627248,116690.0,116680.0,0.13988]
[1754774406678,0.37627248,116690.0,116680.0,0.13888]
[1754774406679,0.37527248,116690.0,116680.0,0.13888]
[1754774407634,0.37527248,116690.0,116680.0,0.13988]
[1754774407862,0.37727248,116690.0,116680.0,0.13988]
[1754774408712,0.37727248,116690.0,116680.0,0.002]
[1754774408940,0.37727248,116690.0,116680.0,0.1398]
[1754774409197,0.37627248,116690.0,116680.0,0.1388]
[1754774409607,0.37827248,116690.0,116680.0,0.1398]
[1754774413500,0.37827248,116690.0,116680.0,0.002]
[1754774417309,0.51571248,116690.0,116680.0,0.002]
[1754774425714,0.49301248,116690.0,116680.0,0.002]
[1754774453660,0.83301248,116690.0,116680.0,1e-08]
[1754774454548,0.17145306,116650.0,116640.0,0.13632]
[1754774455912,0.17245306,116650.0,116640.0,0.13846156]
[1754774456331,0.17345306,116650.0,116640.0,0.14246156]
[1754774458146,0.21051737,116650.0,116640.0,0.14246156]
[1754774460541,0.17345306,116650.0,116640.0,0.14246156]
[1754774463585,0.17857306,116650.0,116640.0,0.14246156]
[1754774464437,0.17757306,116650.0,116640.0,0.14046156]
[1754774464657,0.17857306,116650.0,116640.0,0.14146156]
[1754774465984,0.17757306,116650.0,116640.0,0.13746156]
[1754774466185,0.22188435,116650.0,116640.0,0.13746156]
[1754774466393,0.22288435,116650.0,116640.0,0.14046156]
[1754774467061,0.24862635,116650.0,116640.0,0.14046156]
[1754774469321,0.24862635,116650.0,116640.0,0.00414156]
[1754774469574,0.33548846,116650.0,116640.0,0.00414156]
[1754774470272,0.34412252,116650.0,116640.0,0.00414156]
[1754774474031,0.34312252,116650.0,116640.0,0.00314156]
[1754774474251,0.34212252,116650.0,116640.0,0.00014156]
[1754774474476,0.34312252,116650.0,116640.0,0.00114156]
[1754774475563,0.34312252,116650.0,116640.0,0.00314156]
[1754774475776,0.34212252,116650.0,116640.0,0.00014156]
[1754774475986,0.34412252,116650.0,116640.0,0.00114156]
[1754774476203,0.34612252,116650.0,116640.0,0.00114156]
[1754774476661,0.34412252,116650.0,116640.0,0.00114156]
[1754774477109,0.34612252,116650.0,116640.0,0.00114156]
[1754774477352,0.17146776,116640.0,116630.0,0.00044]
[1754774477564,0.4822889,116640.0,116630.0,0.00044]
[1754774477779,0.4852589,116640.0,116630.0,0.00044]
[1754774478825,0.4862589,116640.0,116630.0,0.00144]
[1754774480312,0.5120089,116640.0,116630.0,0.00144]
[1754774481491,0.5140089,116640.0,116630.0,0.00144]
[1754774481930,0.17149717,116620.0,116610.0,0.04814]
[1754774482143,0.17149717,116620.0,116610.0,0.22012536]
[1754774482372,0.17149717,116620.0,116610.0,0.04861349]
[1754774483202,0.17249717,116620.0,116610.0,0.04861349]
[1754774484070,0.17349717,116620.0,116610.0,0.05161349]
[1754774486913,0.17646717,116620.0,116610.0,0.05161349]
[1754774488925,0.1922032,116620.0,116610.0,0.05161349]
[1754774490770,0.17646717,116620.0,116610.0,0.05161349]
[1754774491922,0.17842717,116620.0,116610.0,0.05161349]
[1754774492086,0.17842717,116620.0,116610.0,0.22312536]
[1754774493128,0.20417617,116620.0,116610.0,0.22312536]
[1754774500043,0.032679,116620.0,116610.0,0.22312536]
[1754774500255,0.22263356,116620.0,116610.0,0.22312536]
[1754774502852,0.20221617,116620.0,116610.0,0.22312536]
[1754774504896,0.030719,116620.0,116610.0,0.22312536]
[1754774505103,0.002,116620.0,116610.0,0.22312536]
[1754774506099,0.00497,116620.0,116610.0,0.22312536]
[1754774509521,0.17349717,116620.0,116610.0,0.17498536]
[1754774509751,0.21403608,116620.0,116610.0,0.31118536]
[1754774510305,0.17664717,116620.0,116610.0,0.31118536]
[1754774512263,0.24695695,116620.0,116610.0,0.13967349]
[1754774512478,0.24695695,116620.0,116610.0,0.00347349]
[1754774512885,0.17860717,116620.0,116610.0,0.00347349]
[1754774513705,0.26546928,116620.0,116610.0,0.00347349]
[1754774513909,0.3117404,116620.0,116610.0,0.00347349]
[1754774515295,0.4479804,116620.0,116610.0,0.00347349]
[1754774516115,0.4469804,116620.0,116610.0,0.00347349]
[1754774516533,0.4479804,116620.0,116610.0,0.00347349]
[1754774517159,0.4469804,116620.0,116610.0,0.00047349]
[1754774517371,0.4479804,116620.0,116610.0,0.00247349]
[1754774517975,0.4469804,116620.0,116610.0,0.00247349]
[1754774518242,0.4479804,116620.0,116610.0,0.00247349]
[1754774520209,0.4479804,116620.0,116610.0,0.00014733]
[1754774520410,0.40170928,116620.0,116610.0,0.00014733]
[1754774521688,0.42745828,116620.0,116610.0,0.00014733]
[1754774522656,0.29121828,116620.0,116610.0,0.00014733]
[1754774531527,0.002,116620.0,116610.0,0.54427092]
[1754774531751,0.002,116620.0,116610.0,0.55957605]
[1754774532007,0.002,116620.0,116610.0,1.35690599]
[1754774532450,0.002,116620.0,116610.0,0.98643816]
[1754774532666,0.002,116620.0,116610.0,0.61597033]
[1754774532877,0.002,116620.0,116610.0,0.98643816]
[1754774533083,0.002,116620.0,116610.0,0.61597033]
[1754774533294,0.002,116620.0,116610.0,0.98643816]
[1754774533715,0.001,116620.0,116610.0,0.615823]
[1754774533929,0.001,116620.0,116610.0,0.98629083]
[1754774534139,0.001,116620.0,116610.0,0.615823]
[1754774534357,0.001,116620.0,116610.0,0.98629083]
[1754774535422,0.001,116620.0,116610.0,1.03674872]
[1754774535631,0.17463313,116630.0,116620.0,0.17149717]
[1754774535840,0.17659313,116630.0,116620.0,0.17149717]
[1754774536466,0.00511,116630.0,116620.0,0.17149717]
[1754774536685,0.00315,116630.0,116620.0,0.541965]
[1754774536899,0.00415,116630.0,116620.0,0.541965]
[1754774537148,0.00415,116630.0,116620.0,0.17149717]
[1754774537375,0.00415,116630.0,116620.0,0.55062038]
[1754774538294,0.00615,116630.0,116620.0,0.55162038]
[1754774538511,0.00615,116630.0,116620.0,0.542965]
[1754774538721,0.00615,116630.0,116620.0,0.17249717]
[1754774538924,0.00615,116630.0,116620.0,0.542965]
[1754774539341,0.00615,116630.0,116620.0,0.17249717]
[1754774542284,0.00615,116630.0,116620.0,0.542965]
[1754774543109,0.00825,116630.0,116620.0,0.542965]
[1754774544598,0.00825,116630.0,116620.0,0.17249717]
[1754774544825,0.00825,116630.0,116620.0,0.542965]
[1754774545250,0.00825,116630.0,116620.0,0.17249717]
[1754774550655,0.00825,116630.0,116620.0,0.542965]
[1754774551684,0.17973246,116630.0,116620.0,0.30921717]
[1754774558266,0.17973246,116630.0,116620.0,0.13772]
[1754774558477,0.17973246,116630.0,116620.0,0.30921717]
[1754774562467,0.17973246,116630.0,116620.0,0.001]
[1754774562917,0.17973246,116630.0,116620.0,0.13844]
[1754774563134,0.23874745,116630.0,116620.0,0.13844]
[1754774578793,0.23874745,116630.0,116620.0,0.14844]
[1754774581068,0.17343246,116630.0,116620.0,0.31993717]
[1754774581288,0.17343246,116630.0,116620.0,0.14844]
[1754774583061,0.17661246,116630.0,116620.0,0.14844]
[1754774586308,0.20235846,116630.0,116620.0,0.14844]
[1754774594219,0.20235846,116630.0,116620.0,0.011]
[1754774594428,0.21950861,116630.0,116620.0,0.14736]
[1754774604432,0.28785839,116630.0,116620.0,0.14736]
[1754774605065,0.21950861,116630.0,116620.0,0.14736]
[1754774605480,0.20235846,116630.0,116620.0,0.14736]
[1754774614733,0.20235846,116630.0,116620.0,0.14946]
[1754774617542,0.20235846,116630.0,116620.0,0.011]
[1754774617767,0.27070824,116630.0,116620.0,0.011]
[1754774624226,0.20235846,116630.0,116620.0,0.011]
[1754774625380,0.19722846,116630.0,116620.0,0.18459717]
[1754774625928,0.19722846,116630.0,116620.0,0.0131]
[1754774626467,0.025746,116630.0,116620.0,0.18944088]
[1754774626678,0.025746,116630.0,116620.0,0.557765]
[1754774627170,0.18004264,116640.0,116620.0,0.557765]
[1754774627418,0.20578664,116640.0,116630.0,0.13632]
[1754774627624,0.20578664,116640.0,116630.0,0.13848]
[1754774628514,0.20874664,116640.0,116630.0,0.13848]
[1754774628719,0.20974664,116640.0,116630.0,0.13848]
[1754774629474,0.20874664,116640.0,116630.0,0.13848]
[1754774629885,0.21074664,116640.0,116630.0,0.13948]
[1754774630085,0.21279664,116640.0,116630.0,0.13948]
[1754774630745,0.21279664,116640.0,116630.0,0.00316]
[1754774630941,0.21279664,116640.0,116630.0,0.17464246]
[1754774631524,0.26572064,116640.0,116630.0,0.00316]
[1754774631901,0.26572064,116640.0,116630.0,0.001]
[1754774633137,0.40200064,116640.0,116630.0,0.001]
[1754774643413,0.34907664,116640.0,116630.0,0.001]
[1754774647016,0.34903664,116640.0,116630.0,0.001]
[1754774651083,0.21279664,116640.0,116630.0,0.001]
[1754774652694,0.36800853,116640.0,116630.0,0.001]
[1754774658715,0.29965875,116640.0,116630.0,0.001]
[1754774661805,0.29965875,116640.0,116630.0,0.00303]
[1754774662426,0.32230618,116640.0,116630.0,0.00303]
[1754774662655,0.32230618,116640.0,116630.0,0.001]
[1754774663266,0.32230618,116640.0,116630.0,0.00303]
[1754774664336,0.32230618,116640.0,116630.0,0.001]
[1754774680353,0.39065596,116640.0,116630.0,0.001]
[1754774682492,0.32230618,116640.0,116630.0,0.001]
[1754774683802,0.41479596,116640.0,116630.0,0.001]
[1754774684470,0.41379596,116640.0,116630.0,0.001]
[1754774684902,0.41479596,116640.0,116630.0,0.001]
[1754774685527,0.17148246,116630.0,116620.0,0.01]
[1754774685755,0.31898241,116630.0,116620.0,0.01]
[1754774685961,0.32206241,116630.0,116620.0,0.01]
[1754774686171,0.34781141,116630.0,116620.0,0.01]
[1754774687025,0.34881141,116630.0,116620.0,0.011]
[1754774687183,0.34981141,116630.0,116620.0,0.011]
[1754774691889,0.37435141,116630.0,116620.0,0.011]
[1754774701576,0.34981141,116630.0,116620.0,0.011]
[1754774703127,0.41816119,116630.0,116620.0,0.01315]
[1754774703371,0.68981141,116630.0,116620.0,0.01315]
[1754774703583,0.68981141,116630.0,116620.0,0.011]
[1754774703810,0.34981141,116630.0,116620.0,0.011]
[1754774720766,0.34981141,116630.0,116600.0,0.0004]
[1754774720767,0.17151187,116610.0,116600.0,0.0004]
[1754774720992,0.29476614,116610.0,116600.0,0.0004]
[1754774721433,0.29777614,116610.0,116600.0,0.0004]
[1754774721857,0.32353114,116610.0,116600.0,0.0004]
[1754774722714,0.32453114,116610.0,116600.0,0.0004]
[1754774723167,0.32553114,116610.0,116600.0,0.0014]
[1754774725730,0.66553114,116610.0,116600.0,1e-08]
[1754774729285,0.80129114,116610.0,116600.0,1e-08]
[1754774729498,0.51152658,116600.0,116590.0,1e-08]
[1754774729702,0.68727294,116600.0,116590.0,1e-08]
[1754774729926,0.69028294,116600.0,116590.0,1e-08]
[1754774731166,0.71604194,116600.0,116590.0,1e-08]
[1754774731361,0.71904194,116600.0,116590.0,0.00100001]
[1754774731841,0.72104194,116600.0,116590.0,0.00100001]
[1754774732541,0.72404194,116600.0,116590.0,0.00100001]
[1754774735247,0.17157073,116570.0,116560.0,0.15095121]
[1754774735498,0.17157073,116570.0,116560.0,0.15294121]
[1754774735930,0.19732873,116570.0,116560.0,0.15294121]
[1754774736618,0.19832873,116570.0,116560.0,0.15598852]
[1754774737025,0.19932873,116570.0,116560.0,0.15598852]
[1754774745307,0.19932873,116570.0,116560.0,0.15328852]
[1754774746329,0.19932873,116570.0,116560.0,0.15598852]
[1754774750654,0.19932873,116570.0,116560.0,0.52697938]
[1754774751062,0.31082454,116570.0,116560.0,0.15121852]
[1754774752170,0.20452873,116570.0,116560.0,0.15121852]
[1754774752378,0.20352873,116570.0,116560.0,0.15121852]
[1754774752591,0.20252873,116570.0,116560.0,0.14821852]
[1754774752793,0.20352873,116570.0,116560.0,0.14821852]
[1754774753170,0.20452873,116570.0,116560.0,0.15021852]
[1754774753379,0.24299476,116570.0,116560.0,0.15021852]
[1754774753594,0.24299476,116570.0,116560.0,0.01453852]
[1754774753808,0.32985687,116570.0,116560.0,0.15021852]
[1754774754392,0.32985687,116570.0,116560.0,0.01453852]
[1754774755199,0.46553687,116570.0,116560.0,0.01453852]
[1754774757259,0.89722665,116570.0,116560.0,1e-08]
[1754774757699,0.32985687,116570.0,116560.0,1e-08]
[1754774757839,0.32985687,116570.0,116560.0,0.00213001]
[1754774758041,0.32885687,116570.0,116560.0,1e-08]
[1754774758252,0.33085687,116570.0,116560.0,1e-08]
[1754774758744,0.29239084,116570.0,116560.0,1e-08]
[1754774759447,0.17158544,116560.0,116550.0,0.480524]
[1754774759690,0.17678544,116560.0,116550.0,0.4806052]
[1754774760091,0.17678544,116560.0,116550.0,0.4827352]
[1754774760335,0.17158544,116560.0,116550.0,0.4827352]
[1754774760541,0.24117027,116560.0,116550.0,0.4827352]
[1754774761163,0.20034744,116560.0,116550.0,0.4827352]
[1754774761790,0.20554744,116560.0,116550.0,0.4827352]
[1754774761998,0.20654744,116560.0,116550.0,0.4827352]
[1754774762844,0.20134744,116560.0,116550.0,0.4827352]
[1754774763947,0.20134744,116560.0,116550.0,0.85656507]
[1754774764592,0.20134744,116560.0,116550.0,0.4827352]
[1754774764810,0.20134744,116560.0,116550.0,0.85386507]
[1754774765025,0.20134744,116560.0,116550.0,0.4827352]
[1754774765255,0.24764647,116560.0,116550.0,0.4827352]
[1754774765921,0.20134744,116560.0,116550.0,0.3470552]
[1754774766350,0.20333744,116560.0,116550.0,0.3470552]
[1754774766602,0.20654744,116560.0,116550.0,0.4827352]
[1754774766814,0.20654744,116560.0,116550.0,0.4806052]
[1754774768066,0.29340955,116560.0,116550.0,0.4806052]
[1754774768282,0.34674256,116560.0,116550.0,0.4806052]
[1754774768498,0.34674256,116560.0,116550.0,0.4805652]
[1754774769304,0.48238256,116560.0,116550.0,1e-08]
[1754774769500,0.84572256,116560.0,116550.0,1e-08]
[1754774772906,0.17160017,116550.0,116540.0,1e-08]
[1754774773165,0.44214631,116550.0,116540.0,4.737e-05]
[1754774773407,0.37379653,116550.0,116540.0,4.737e-05]
[1754774774394,0.37479653,116550.0,116540.0,1e-08]
[1754774774613,0.35145653,116550.0,116540.0,1e-08]
[1754774774833,0.48625653,116550.0,116540.0,1e-08]
[1754774775056,0.51161489,116540.0,116530.0,1e-08]
[1754774775276,0.69047125,116540.0,116530.0,4.731e-05]
[1754774775706,0.71624325,116540.0,116530.0,4.731e-05]
[1754774776056,0.85200325,116540.0,116530.0,4.731e-05]
[1754774777537,0.85400325,116540.0,116530.0,4.731e-05]
[1754774777775,0.85500325,116540.0,116530.0,4.731e-05]
[1754774780590,0.87798325,116540.0,116530.0,1e-08]
[1754774781421,0.87498325,116540.0,116530.0,1e-08]
[1754774781637,0.87798325,116540.0,116530.0,1e-08]
[1754774782037,0.87998325,116540.0,116530.0,1e-08]
[1754774783923,0.87698325,116540.0,116530.0,1e-08]
[1754774784330,0.52909337,116520.0,116510.0,1e-08]
[1754774784531,0.82633778,116520.0,116510.0,1e-08]
[1754774784661,0.17165908,116510.0,116500.0,0.53625061]
[1754774784881,0.26383119,116510.0,116500.0,0.30020612]
[1754774785101,0.26383119,116510.0,116500.0,0.0884102]
[1754774785298,0.26383119,116510.0,116500.0,0.07184457]
[1754774785595,0.36541633,116510.0,116500.0,1e-08]
[1754774785767,0.36841633,116510.0,116500.0,1e-08]
[1754774787313,0.36541633,116510.0,116500.0,1e-08]
[1754774787645,0.37541633,116510.0,116500.0,1e-08]
[1754774789739,0.51113633,116510.0,116500.0,1e-08]
[1754774789951,0.35243633,116510.0,116500.0,1e-08]
[1754774790166,0.48815633,116510.0,116500.0,1e-08]
[1754774790386,0.51393433,116510.0,116500.0,1e-08]
[1754774795665,0.51393433,116510.0,116500.0,0.00213001]
[1754774795887,0.51071433,116510.0,116500.0,0.00213001]
[1754774796111,0.51393433,116510.0,116500.0,0.00213001]
[1754774796800,0.51393433,116510.0,116500.0,1e-08]
[1754774798349,0.37290433,116510.0,116500.0,0.00483001]
[1754774798581,0.84862433,116510.0,116500.0,0.00483001]
[1754774798796,0.77001919,116510.0,116500.0,0.00483001]
[1754774799473,0.77001919,116510.0,116500.0,0.00213001]
[1754774800135,0.76601919,116510.0,116500.0,0.00213001]
[1754774800352,0.76301919,116510.0,116500.0,0.00213001]
[1754774800571,0.84981344,116510.0,116500.0,0.00213001]
[1754774800849,0.85481344,116510.0,116500.0,0.00213001]
[1754774801071,0.71909344,116510.0,116500.0,0.00213001]
[1754774801302,0.85481344,116510.0,116500.0,0.00213001]
[1754774803446,0.86012344,116510.0,116500.0,1e-08]
[1754774810666,0.85481344,116510.0,116500.0,0.00204001]
[1754774813470,0.85801344,116510.0,116500.0,0.00204001]
[1754774813679,0.86016344,116510.0,116500.0,1e-08]
[1754774823222,0.88346344,116510.0,116500.0,1e-08]
[1754774826925,0.86016344,116510.0,116500.0,1e-08]
[1754774828209,0.86044344,116510.0,116500.0,1e-08]
[1754774843986,0.86044344,116510.0,116500.0,0.00209001]
[1754774844619,0.86044344,116510.0,116500.0,1e-08]
[1754774856018,0.51168855,116490.0,116480.0,1e-08]
[1754774856227,0.8062818,116490.0,116480.0,1e-08]
[1754774856641,0.8352058,116490.0,116480.0,1e-08]
[1754774857333,0.8422058,116490.0,116480.0,1e-08]
[1754774857549,0.85076143,116490.0,116480.0,1e-08]
[1754774858137,0.84376143,116490.0,116480.0,1e-08]
[1754774858341,0.85676143,116490.0,116480.0,1e-08]
[1754774858557,0.88251727,116490.0,116480.0,1e-08]
[1754774864495,0.74683727,116490.0,116480.0,1e-08]
[1754774864699,0.88255727,116490.0,116480.0,1e-08]
[1754774882080,0.90755727,116490.0,116480.0,1e-08]
[1754774883054,0.88255727,116490.0,116480.0,1e-08]
[1754774883201,0.90755727,116490.0,116480.0,1e-08]
[1754774885043,0.89900164,116490.0,116480.0,1e-08]
[1754774886662,0.90775225,116490.0,116480.0,1e-08]
[1754774892986,0.40703225,116490.0,116480.0,0.00195001]
[1754774893198,0.53756225,116490.0,116480.0,0.00195001]
[1754774893607,0.54279225,116490.0,116480.0,0.00195001]
[1754774893814,0.88279225,116490.0,116480.0,0.00195001]
[1754774894039,0.88279225,116490.0,116480.0,1e-08]
[1754774894463,0.88279225,116490.0,116460.0,0.10674391]
[1754774894464,0.51171803,116470.0,116460.0,0.10674391]
[1754774894678,0.39418014,116470.0,116460.0,0.10599391]
[1754774894899,0.39418014,116470.0,116460.0,0.10718391]
[1754774895110,0.41996414,116470.0,116460.0,0.10718391]
[1754774895337,0.41996414,116470.0,116460.0,0.10793391]
[1754774895976,0.42496414,116470.0,116460.0,0.10793391]
[1754774896197,0.42796414,116470.0,116460.0,0.10793391]
[1754774896910,0.48793216,116470.0,116460.0,0.10793391]
[1754774901369,0.35233216,116470.0,116460.0,0.10793391]
[1754774901569,0.48789216,116470.0,116460.0,0.10793391]
[1754774902377,0.42792414,116470.0,116460.0,0.10793391]
[1754774902803,0.42792414,116470.0,116460.0,0.10718391]
[1754774903841,0.29236414,116470.0,116460.0,0.10718391]
[1754774904046,0.42792414,116470.0,116460.0,0.10793391]
[1754774904322,0.42792414,116470.0,116460.0,0.10718391]
[1754774904938,0.29236414,116470.0,116460.0,0.10718391]
[1754774905070,0.42792414,116470.0,116460.0,0.10718391]
[1754774906256,0.45881729,116470.0,116460.0,0.10718391]
[1754774906460,0.42792414,116470.0,116460.0,0.10718391]
[1754774907033,0.42292414,116470.0,116460.0,0.10718391]
[1754774907229,0.28736414,116470.0,116460.0,0.10718391]
[1754774907488,0.33602203,116470.0,116460.0,0.27966669]
[1754774907716,0.33602203,116470.0,116460.0,0.10718391]
[1754774908072,0.33602203,116470.0,116460.0,0.27891669]
[1754774909101,0.33602203,116470.0,116460.0,0.27966669]
[1754774909102,0.34102203,116470.0,116460.0,0.27966669]
[1754774909522,0.033784,116470.0,116460.0,0.27966669]
[1754774909773,0.169304,116470.0,116460.0,0.27966669]
[1754774910215,0.030784,116470.0,116460.0,0.27966669]
[1754774910406,0.030784,116470.0,116460.0,0.65146051]
[1754774910541,0.007,116470.0,116460.0,0.65146051]
[1754774910749,0.007,116470.0,116460.0,0.27966669]
[1754774911002,0.007,116470.0,116460.0,0.65146051]
[1754774911244,0.002,116470.0,116460.0,0.65146051]
[1754774911457,0.006,116470.0,116460.0,0.65246051]
[1754774911828,0.3162254,116490.0,116470.0,0.17171803]
[1754774912063,0.3162254,116490.0,116480.0,0.17289329]
[1754774912234,0.3420024,116490.0,116480.0,0.17289329]
[1754774913044,0.3460024,116490.0,116480.0,0.17289329]
[1754774913264,0.2105224,116490.0,116480.0,0.17289329]
[1754774913647,0.28409218,116490.0,116480.0,0.00119]
[1754774914251,0.28009218,116490.0,116480.0,0.00119]
[1754774914455,0.28009218,116490.0,116480.0,0.00219]
[1754774914660,0.28409218,116490.0,116480.0,0.00219]
[1754774915072,0.2157424,116490.0,116480.0,0.00219]
[1754774915676,0.2176924,116490.0,116480.0,0.00219]
[1754774915875,0.2176924,116490.0,116480.0,0.17389329]
[1754774916877,0.2126924,116490.0,116480.0,0.17389329]
[1754774917632,0.2126924,116490.0,116480.0,0.18252492]
[1754774918922,0.2126924,116490.0,116480.0,0.01082163]
[1754774923181,0.28104218,116490.0,116480.0,0.001]
[1754774926463,0.27604218,116490.0,116480.0,0.001]
[1754774931827,0.2076924,116490.0,116480.0,0.001]
[1754774949202,0.27604218,116490.0,116480.0,0.001]
[1754774976885,0.42124467,116490.0,116480.0,0.001]
[1754774987745,0.35289489,116490.0,116480.0,0.001]
[1754774991431,0.29455451,116490.0,116480.0,0.001]
[1754775017206,0.42923451,116490.0,116480.0,0.001]
[1754775050718,0.49758429,116490.0,116480.0,0.001]
[1754775052538,0.42923451,116490.0,116480.0,0.001]
[1754775055619,0.76923451,116490.0,116480.0,0.001]
[1754775055863,0.85602876,116490.0,116480.0,0.001]
[1754775060681,0.84602876,116490.0,116480.0,0.001]
[1754775068024,0.84602876,116490.0,116480.0,0.0005]
[1754775068413,0.75887451,116490.0,116480.0,0.0005]
[1754775071870,0.61938451,116490.0,116480.0,0.00169]
[1754775072294,0.75366451,116490.0,116480.0,0.00169]
[1754775076634,0.75675451,116490.0,116480.0,0.00169]
[1754775077926,0.61938451,116490.0,116480.0,0.00169]
[1754775078145,0.75366451,116490.0,116480.0,0.00169]
[1754775078378,0.83310212,116490.0,116480.0,0.00169]
[1754775083289,0.83621212,116490.0,116480.0,0.00169]
[1754775084514,0.83837212,116490.0,116480.0,0.00169]
[1754775091491,0.49621212,116490.0,116480.0,0.00169]
[1754775092330,0.49837212,116490.0,116480.0,0.00169]
[1754775092724,0.49837212,116490.0,116480.0,0.0005]
[1754775099869,0.36409212,116490.0,116480.0,0.0005]
[1754775100086,0.49825212,116490.0,116480.0,0.0005]
[1754775106103,0.41881451,116490.0,116480.0,0.0005]
[1754775118977,0.25854154,116490.0,116480.0,0.17220329]
[1754775119584,0.12438154,116490.0,116480.0,0.17220329]
[1754775119781,0.25842154,116490.0,116480.0,0.17220329]
[1754775124823,0.25842154,116490.0,116480.0,0.18096882]
[1754775125044,0.36980185,116490.0,116480.0,0.17220329]
[1754775125247,0.30145207,116490.0,116480.0,0.17220329]
[1754775126842,0.16741207,116490.0,116480.0,0.17220329]
[1754775127058,0.30197207,116490.0,116480.0,0.17220329]
[1754775127301,0.16741207,116490.0,116480.0,0.17220329]
[1754775127517,0.30205207,116490.0,116480.0,0.17220329]
[1754775127948,0.30205207,116490.0,116480.0,0.17470329]
[1754775130570,0.27627507,116490.0,116480.0,0.17470329]
[1754775138349,0.23324454,116490.0,116480.0,0.17470329]
[1754775147555,0.00647243,116490.0,116480.0,0.54768711]
[1754775147805,0.14063243,116490.0,116480.0,0.54768711]
[1754775148287,0.00447243,116490.0,116480.0,0.54768711]
[1754775148502,0.00147243,116490.0,116480.0,0.54818711]
[1754775149356,0.00347243,116490.0,116480.0,0.54918711]
[1754775150200,0.00347243,116490.0,116480.0,0.17739329]
[1754775150416,0.00347243,116490.0,116480.0,0.54918711]
[1754775151547,0.00347243,116490.0,116480.0,0.17739329]
[1754775151766,0.00347243,116490.0,116480.0,0.54918711]
[1754775154297,0.00347243,116490.0,116480.0,0.17739329]
[1754775154734,0.00347243,116490.0,116480.0,0.54918711]
[1754775155002,0.00347243,116490.0,116480.0,0.17739329]
[1754775155244,0.00347243,116490.0,116480.0,0.54918711]
[1754775157655,0.00347243,116490.0,116480.0,0.92173093]
[1754775158584,0.00147243,116490.0,116480.0,0.92073093]
[1754775159062,0.00347243,116490.0,116480.0,0.92073093]
[1754775159294,0.00247243,116490.0,116480.0,0.92073093]
[1754775159525,0.00347243,116490.0,116480.0,0.94750493]
[1754775159973,0.00347243,116490.0,116480.0,2.32666706]
[1754775160223,0.00020341,116490.0,116480.0,2.32666706]
[1754775160874,0.00020782,116500.0,116490.0,0.17168855]
[1754775161095,0.00020782,116500.0,116490.0,0.67887237]
[1754775161315,0.00020782,116500.0,116490.0,0.30782855]
[1754775161530,0.00020782,116500.0,116490.0,0.67962237]
[1754775162190,0.00520782,116500.0,116490.0,0.68162237]
[1754775162855,0.00420782,116500.0,116490.0,0.30882855]
[1754775163070,0.00420782,116500.0,116490.0,0.68062237]
[1754775163286,0.00020782,116500.0,116490.0,0.67962237]
[1754775163500,0.00020782,116500.0,116490.0,0.30782855]
[1754775163713,0.00120782,116500.0,116490.0,0.68062237]
[1754775163935,0.00120782,116500.0,116490.0,0.30882855]
[1754775164153,0.00120782,116500.0,116490.0,0.68062237]
[1754775164580,0.00220782,116500.0,116490.0,0.68262237]
[1754775165466,0.00220782,116500.0,116490.0,1.93079919]
[1754775166118,0.00220782,116500.0,116490.0,2.0176613]
[1754775166848,0.00220782,116500.0,116490.0,2.5076613]
[1754775167065,0.0005,116520.0,116510.0,0.5434529]
[1754775167283,0.0005,116520.0,116510.0,0.30708908]
[1754775167504,0.0005,116520.0,116510.0,0.6788829]
[1754775167939,0.0005,116520.0,116510.0,0.39470119]
[1754775168161,0.0005,116520.0,116510.0,0.79226001]
[1754775168363,0.0035,116520.0,116510.0,0.79251001]
[1754775168775,0.0035,116520.0,116510.0,0.42171619]
[1754775169162,0.0005,116520.0,116510.0,0.79151001]
[1754775169590,0.0015,116520.0,116510.0,0.42171619]
[1754775169802,0.0015,116520.0,116510.0,1.11334101]
[1754775170635,0.0025,116520.0,116510.0,1.11534101]
[1754775171287,0.0015,116520.0,116510.0,1.82513483]
[1754775171507,1e-08,116520.0,116510.0,1.08229719]
[1754775171733,0.00100001,116520.0,116510.0,1.08429719]
[1754775171949,0.00100001,116520.0,116510.0,1.84533385]
[1754775172158,1e-08,116520.0,116510.0,1.84533385]
[1754775173103,1e-08,116520.0,116510.0,1.99533385]
[1754775175101,0.00516001,116520.0,116510.0,0.99238121]
[1754775175337,0.00516001,116520.0,116510.0,1.15877503]
[1754775175979,1e-08,116520.0,116510.0,1.15877503]
[1754775176193,1e-08,116520.0,116510.0,0.78698121]
[1754775176627,1e-08,116520.0,116510.0,1.15877503]
[1754775177714,1e-08,116520.0,116510.0,1.49877503]
[1754775179279,1e-08,116520.0,116510.0,1.12698121]
[1754775179489,1e-08,116520.0,116510.0,1.87056885]